Cogmind - Beta 13 @@@ ROGUE MODE // 2024.05.27 @ 23:50:50 Player: JP Result: Self-destructed Performance ------------- Evolutions (3) 1500 Regions Visited (13) 2600 Robots Destroyed (123) 615 Value Destroyed (3787) 3787 Prototype IDs (28) 560 Alien Tech Used (0) 0 Bonus (2292) 2292 TOTAL SCORE: 11354 Bonus ------- High Alert Combat Kills 142 Follower Combat Kills 250 Entered Garrisons 600 Used RIF Installer 1000 Aligned with FarCom 300 Cogmind --------- Core Integrity 82/700 Matter 300/300 Energy 100/100 System Corruption 1% Temperature Cool (0) Movement Core (550) Ox10 Location -7/Garrison Parts ------- > --- POWER (1) -------- (None) > --- PROPULSION (4) --- (None) > --- UTILITY (6) ------ Improved Heat Sink Large Storage Unit Improved Signal Interpreter Improved Weapon Shielding Improved Weapon Shielding > --- WEAPON (2) ------- Improved Remote Datajack Longsword +1 > --- INVENTORY (15) --- Micro Nuclear Core Improved Heat Sink Improved Heat Sink Medium Storage Unit Transport Network Coupler EMP Blaster Improved Datajack Flail Heavy Explosive Trap Heavy Explosive Trap Heavy Explosive Trap Peak State ------------ > --- POWER ------------ Light Nuclear Core > --- PROPULSION ------- Aluminum Leg Carbon-fiber Leg Titanium Leg Improved Titanium Leg > --- UTILITY ---------- Large Storage Unit Improved Signal Interpreter Improved Melee Analysis Suite Improved Weapon Shielding Hardened Medium Armor Plating Hardened Medium Armor Plating > --- WEAPON ----------- Improved Datajack Longsword +1 > --- INVENTORY -------- Improved Deuterium Engine Micro Nuclear Core Light Treads Compact Wheel Improved Heat Sink Improved Heat Sink Advanced Heat Sink Medium Storage Unit Transport Network Coupler Improved Weapon Shielding Improved Medium Laser Improved Medium Laser EMP Blaster Flail [Rating: 45] Favorites ----------- Power Deuterium Engine Engine Deuterium Engine Power Core Light Nuclear Core Propulsion Titanium Leg Treads Light Treads Leg Titanium Leg Wheel Compact Wheel Flight Unit VTOL Module Utility Targeting Computer Device Improved Heat Sink Storage Medium Storage Unit Processor Targeting Computer Hackware Relay Coupler [Grunt] Protection Improved Weapon Shielding Weapon Precision Beam Rifle Energy Gun Precision Beam Rifle Energy Cannon Beam Cannon Ballistic Gun Improved Assault Rifle Ballistic Cannon Improved Light Cannon Launcher Grenade Launcher Special Weapon Improved Remote Datajack Impact Weapon Mace Slashing Weapon Longsword +1 Special Melee Weapon Improved Datajack Build | -11 -10 -10 -9 -9 -9 -8 -8 -8 -8 -7 -7 -7 -7 ------- Run | Yrd Mat Min Mat Min Exi Min Mat Gar Mat Fac Gar Fac Gar Slots Evolved 6 | . . . 2 . . . 2 . . 2 . . . Power . | . . . . . . . . . . . . . . Propulsion 2 | . . . . . . . 1 . . 1 . . . Utility 4 | . . . 2 . . . 1 . . 1 . . . Weapon . | . . . . . . . . . . . . . . Parts Attached 100 | 5 8 3 20 . . 3 22 9 7 12 2 3 6 Power 11 | 1 2 2 1 . . 2 1 . . 1 . . 1 Engine 10 | 1 2 2 1 . . 2 1 . . . . . 1 Core 1 | . . . . . . . . . . 1 . . . Reactor . | . . . . . . . . . . . . . . Propulsion 30 | 3 . 1 6 . . 1 6 . 2 5 2 1 3 Treads 4 | 2 . 1 . . . . . . . . 1 . . Leg 23 | 1 . . 6 . . 1 6 . 2 4 . 1 2 Wheel 2 | . . . . . . . . . . 1 1 . . Hover . | . . . . . . . . . . . . . . Flight 1 | . . . . . . . . . . . . . 1 Utility 31 | 1 2 . 4 . . . 8 4 3 6 . 2 1 Device 6 | . 1 . . . . . 3 . . . . 1 1 Storage 4 | 1 . . 2 . . . . . 1 . . . . Processor 5 | . . . 2 . . . . 2 . 1 . . . Hackware 4 | . . . . . . . 1 2 1 . . . . Protection 12 | . 1 . . . . . 4 . 1 5 . 1 . Artifact . | . . . . . . . . . . . . . . Weapon 28 | . 4 . 9 . . . 7 5 2 . . . 1 Energy Gun 12 | . 2 . 2 . . . 6 2 . . . . . Energy Cannon 2 | . 2 . . . . . . . . . . . . Ballistic Gun 3 | . . . 3 . . . . . . . . . . Ballistic Cannon 1 | . . . 1 . . . . . . . . . . Launcher 3 | . . . 1 . . . . 1 1 . . . . Special Weapon 1 | . . . . . . . . . . . . . 1 Impact Weapon 2 | . . . 2 . . . . . . . . . . Slashing Weapon 3 | . . . . . . . 1 1 1 . . . . Piercing Weapon . | . . . . . . . . . . . . . . Special Melee Weapon 1 | . . . . . . . . 1 . . . . . Unidentified Prototypes 5 | . . . 2 . . . 2 . 1 . . . . Parts Lost 29 | . . . 4 . . . 5 . 1 4 4 1 10 Power 3 | . . . 1 . . . . . . . . . 2 Propulsion 15 | . . . 1 . . . 1 . . 3 3 . 7 Utility 9 | . . . . . . . 4 . 1 1 1 1 1 Weapon 2 | . . . 2 . . . . . . . . . . Highest Loss Streak 6 | . . . 2 . . . 1 . 1 2 2 1 6 To Critical Strikes 1 | . . . . . . . 1 . . . . . . Average Slot Usage (%) 95 | . 95 100 97 100 100 100 92 98 97 94 96 80 84 Engine 8 | . 14 14 9 11 11 11 8 9 9 4 . . 1 Treads 3 | . 28 28 5 . . . . . . . 1 7 1 Leg 21 | . . . 16 22 22 22 26 27 27 28 23 7 12 Device 6 | . 2 14 11 11 11 11 6 4 . . . . 3 Storage 9 | . 14 14 11 11 11 11 9 9 9 7 7 7 7 Processor 16 | . . . 22 22 22 22 13 16 18 16 15 15 15 Hackware 1 | . . . . . . . . 6 10 2 . . . Protection 6 | . 7 . . . . . 9 6 5 15 22 11 15 Energy Gun 9 | . 19 . . 22 22 22 17 10 . . . . . Energy Cannon 2 | . 8 28 5 . . . . . . . . . . Ballistic Gun 2 | . . . 13 . . . . . . . . . . Slashing Weapon 2 | . . . . . . . . 2 9 7 7 7 7 Special Melee Weapon 2 | . . . . . . . . 4 9 7 7 7 2 Naked Turns . | . . . . . . . . . . . . . . Heaviest Build 47 | 8 15 19 31 22 22 25 33 28 35 47 47 39 42 Greatest Support 69 | 40 40 40 40 34 34 37 54 51 51 69 62 37 42 Greatest Overweight (x) 13 | . . . 7 . . 1 1 . . . 2 2 13 Average Overweight (x) . | . . . . . . . . . . . . 1 . Largest Inventory Capacity 15 | 8 8 8 15 10 10 10 10 10 15 15 15 15 15 Average Capacity 11 | 6 8 8 9 10 10 10 10 10 13 15 15 15 15 Most Carried 15 | 6 8 8 10 10 10 10 10 10 12 15 14 14 14 Average Carried 9 | 4 7 7 8 10 9 9 9 9 9 12 12 12 11 Final Capacity 15 | 8 8 8 10 10 10 10 10 10 15 15 15 15 15 Final Carried 14 | 6 8 8 10 10 10 10 10 10 10 14 13 11 11 Class Distribution -------------------- 68% | Mutant 31% | Scavenger-Mutant Dominant Class ---------------- Mutant | -10/Materials Mutant | -10/Mines Scavenger-Mutant | -9/Materials Mutant | -9/Mines Mutant | -9/Exiles Scavenger-Mutant | -8/Mines Mutant | -8/Materials Mutant | -8/Garrison Mutant | -8/Materials Mutant | -7/Factory Mutant | -7/Garrison Scavenger-Mutant | -7/Factory Scavenger-Mutant | -7/Garrison Resources | -11 -10 -10 -9 -9 -9 -8 -8 -8 -8 -7 -7 -7 -7 ----------- Run | Yrd Mat Min Mat Min Exi Min Mat Gar Mat Fac Gar Fac Gar Matter Collected 1437 | 217 150 30 357 47 . 30 222 98 58 90 49 . 89 Remotely . | . . . . . . . . . . . . . . Salvage Created 4750 | . 419 108 866 71 . 311 1039 176 470 749 124 . 417 Parts 270 | . 28 3 71 10 . 6 50 15 25 33 5 . 24 Haulers Intercepted 7 | . 2 . 1 . . . 2 . 2 . . . . Recyclers Shooed 3 | . . . . 1 . . . . 1 1 . . . Parts Field Recycled . | . . . . . . . . . . . . . . Retrieved Matter . | . . . . . . . . . . . . . . Parts Self-Destructed . | . . . . . . . . . . . . . . Prevented . | . . . . . . . . . . . . . . Kills | -11 -10 -10 -9 -9 -9 -8 -8 -8 -8 -7 -7 -7 -7 ------- Run | Yrd Mat Min Mat Min Exi Min Mat Gar Mat Fac Gar Fac Gar Combat Hostiles Destroyed 96 | . 8 4 22 4 . 3 21 6 6 10 2 . 10 Melee 36 | . . . 1 . . . 5 2 6 10 2 . 10 Guns 36 | . 6 . 6 4 . 3 16 1 . . . . . Cannons 16 | . 2 3 11 . . . . . . . . . . AOE 6 | . . . 3 . . . . 3 . . . . . Classes Destroyed 14 | . 5 1 3 . . 1 2 . . 2 . . . Worker 3 | . . . 3 . . . . . . . . . . Builder 2 | . . . 1 1 . . . . . . . . . Hauler 7 | . 2 . 1 . . . 2 . 2 . . . . Recycler 5 | . . . . . . 2 . . 1 2 . . . Mechanic 1 | . . . . . . . 1 . . . . . . Operator 3 | . 1 . 2 . . . . . . . . . . Watcher 6 | . 1 . 2 . . . 2 . . 1 . . . Swarmer 33 | . 3 3 8 4 . . 6 4 1 . . . 4 Grunt 39 | . 5 . 8 . . 2 11 . 5 4 . . 4 Brawler 2 | . . . 1 . . 1 . . . . . . . Duelist 1 | . . . . . . . . . . 1 . . . Sentry 15 | . . 1 5 . . . 3 1 . 4 1 . . Hunter 2 | . . . . . . . 1 1 . . . . . Programmer 4 | . . . . . . . . . . 1 1 . 2 Best Kill Streak 7 | . 5 3 7 5 . 4 6 4 3 3 1 . 4 Combat Bots Only 6 | . 5 3 6 4 . 2 6 4 2 2 1 . 4 Max Kills in Single Turn 2 | . 1 2 2 2 . 1 1 2 1 1 1 . 1 Gunslinging 1 | . . . . 1 . . . . . . . . . Exploded 2 | . . . 2 . . . . 2 . . . . . Melee 1 | . . . 1 . . . 1 1 1 1 1 . 1 Uniques/NPCs Destroyed . | . . . . . . . . . . . . . . Combat | -11 -10 -10 -9 -9 -9 -8 -8 -8 -8 -7 -7 -7 -7 -------- Run | Yrd Mat Min Mat Min Exi Min Mat Gar Mat Fac Gar Fac Gar Hostile Shots Fired 679 | . 31 3 135 14 . 10 79 38 28 93 111 27 110 Missed 229 | . 7 2 42 5 . 4 24 10 7 37 42 11 38 Damage Taken 5651 | . 253 7 1171 74 . 110 767 349 259 783 640 120 1118 Core 1192 | . 69 . 258 9 . 16 99 61 62 117 116 28 357 Absorbed by Shields 14 | . . . . . . . . 14 . . . . . Redirected to Shielding 209 | . 11 . . . . . 27 43 5 47 3 . 73 Core Remaining (%) 65 | 100 . 72 . . . 29 . . 59 . . . . Volleys Fired 182 | . 22 4 69 6 . 8 66 6 . . . . 1 Largest 2 | . 2 2 2 2 . 2 2 2 . . . . 1 Hottest 122 | . 120 120 120 122 . 122 122 122 . . . . 7 Shots Fired 322 | . 44 8 110 12 . 16 122 9 . . . . 1 Gun 244 | . 34 . 53 12 . 16 122 7 . . . . . Cannon 71 | . 10 8 53 . . . . . . . . . . Launcher 6 | . . . 4 . . . . 2 . . . . . Special 1 | . . . . . . . . . . . . . 1 Kinetic 58 | . . . 58 . . . . . . . . . . Thermal 257 | . 44 8 48 12 . 16 122 7 . . . . . Explosive 4 | . . . 4 . . . . . . . . . . Electromagnetic 2 | . . . . . . . . 2 . . . . . Robot Hit Streak 32 | . 6 5 16 3 . 17 32 20 . . . . . Robot Miss Streak 4 | . 4 1 3 2 . . 2 2 . . . . . Penetration Max . | . . . . . . . . . . . . . . Secondary Targets 2 | . . . . 2 . . . . . . . . . Max Gunslinging Chain 1 | . . . . 1 . . . . . . . . . Shots Hit Robots 342 | . 25 5 81 5 . 14 108 12 22 43 9 . 18 Core Hits 160 | . 17 3 40 5 . 7 46 7 7 14 3 . 11 Critical Kills 2 | . . 1 1 . . . . . . . . . . Critical Parts Destroyed . | . . . . . . . . . . . . . . Critical Strikes 24 | . 1 1 1 1 . . 10 . 4 5 . . 1 Burn 12 | . 1 . . 1 . . 10 . . . . . . Meltdown 1 | . . 1 . . . . . . . . . . . Smash 1 | . . . 1 . . . . . . . . . . Sever 10 | . . . . . . . . . 4 5 . . 1 Melee Attacks 158 | . . . 4 . . . 11 15 29 59 9 1 30 Impact 4 | . . . 4 . . . . . . . . . . Slashing 133 | . . . . . . . 11 5 26 53 8 . 30 Piercing . | . . . . . . . . . . . . . . Sneak Attacks 13 | . . . 1 . . . . . 5 7 . . . Combat Hostiles 5 | . . . . . . . . . 1 4 . . . Follow-up Attacks . | . . . . . . . . . . . . . . Damage Inflicted 9185 | . 339 105 1643 105 . 239 2087 289 1238 1950 374 . 816 Guns 2905 | . 216 . 562 87 . 239 1752 49 . . . . . Cannons 928 | . 123 105 700 . . . . . . . . . . Explosions 372 | . . . 229 . . . . 143 . . . . . Melee 4938 | . . . 135 . . . 328 97 1238 1950 374 . 816 Ramming 42 | . . . 17 18 . . 7 . . . . . . Kinetic 668 | . . . 668 . . . . . . . . . . Thermal 3220 | . 339 105 594 87 . 239 1752 104 . . . . . Explosive 224 | . . . 224 . . . . . . . . . . Electromagnetic 93 | . . . 5 . . . . 88 . . . . . Impact 135 | . . . 135 . . . . . . . . . . Slashing 4803 | . . . . . . . 328 97 1238 1950 374 . 816 Piercing . | . . . . . . . . . . . . . . Highest Corruption 4 | . . . . . . . 1 1 4 . . . 1 Average Corruption 1 | . . . . . . . 1 1 1 . . . 1 Corruption Purged . | . . . . . . . . . . . . . . Corruption Blocked . | . . . . . . . . . . . . . . Effects 17 | . . . . . . . 7 3 5 . . . 2 Message Errors 2 | . . . . . . . 1 . 1 . . . . Matter Fused 5 | . . . . . . . 3 . 1 . . . 1 Heat Flow Errors 2 | . . . . . . . . 1 . . . . 1 Energy Discharges 4 | . . . . . . . 1 1 2 . . . . Parts Rejected 1 | . . . . . . . 1 . . . . . . Data Loss (minor) 1 | . . . . . . . . . 1 . . . . Data Loss (major) 2 | . . . . . . . 1 1 . . . . . Overload Shots . | . . . . . . . . . . . . . . Overflow Damage 471 | . . . 70 . . . 33 8 145 195 5 . 15 Projectiles 4 | . . . 4 . . . . . . . . . . Explosions 8 | . . . . . . . . 8 . . . . . Melee 459 | . . . 66 . . . 33 . 145 195 5 . 15 Knockbacks . | . . . . . . . . . . . . . . Impact . | . . . . . . . . . . . . . . Kinetic . | . . . . . . . . . . . . . . Secondary . | . . . . . . . . . . . . . . Self-Inflicted Damage 48 | . . . 48 . . . . . . . . . . Shots 1 | . . . 1 . . . . . . . . . . Rammed . | . . . . . . . . . . . . . . Targets Rammed 9 | . . . 5 2 . . 2 . . . . . . Kicked 9 | . . . 5 2 . . 2 . . . . . . Crushed . | . . . . . . . . . . . . . . Highest Temperature 382 | . 358 42 81 60 . 69 382 204 8 . 19 . 94 Average Temperature 91 | . 141 20 22 28 . 29 106 52 5 . 7 . 70 Received Heat Transfer 1356 | . 90 . 315 . . 45 288 72 135 132 144 36 99 Effects 9 | . 3 . . . . . 6 . . . . . . Energy Bleed 2 | . 2 . . . . . . . . . . . . Interference 5 | . . . . . . . 5 . . . . . . Matter Decay 1 | . 1 . . . . . . . . . . . . Short Circuit 1 | . . . . . . . 1 . . . . . . Siege Activations . | . . . . . . . . . . . . . . Robots Corrupted . | . . . . . . . . . . . . . . Combat Hostiles . | . . . . . . . . . . . . . . Parts Fried . | . . . . . . . . . . . . . . Impact Corruptions 2 | . . . 2 . . . . . . . . . . Robots Melted 2 | . . 1 1 . . . . . . . . . . Combat Hostiles 2 | . . 1 1 . . . . . . . . . . Parts Melted 15 | . 1 1 5 . . 1 7 . . . . . . Heat Transferred 7872 | . 903 222 1258 259 . 518 4551 161 . . . . . Parts Sabotaged . | . . . . . . . . . . . . . . Parts Stolen . | . . . . . . . . . . . . . . Parts Stripped . | . . . . . . . . . . . . . . Power Chain Reactions 2 | . . . . . . . . 2 . . . . . Alert | -11 -10 -10 -9 -9 -9 -8 -8 -8 -8 -7 -7 -7 -7 ------- Run | Yrd Mat Min Mat Min Exi Min Mat Gar Mat Fac Gar Fac Gar Peak Influence 676 | . 274 197 676 329 . 95 330 582 497 360 232 141 244 Initial 283 | . . 106 76 219 . . . 180 283 184 172 111 91 Average 245 | . 115 160 486 198 . 26 152 321 400 248 207 125 148 Maximum Alert Level 2 | . 1 . 2 1 . . 1 2 2 1 1 . 1 Low Security (%) 41 | 100 75 100 12 26 . 100 56 10 . 28 18 100 78 Level 1 39 | . 24 . 14 73 . . 43 61 35 71 81 . 21 Level 2 18 | . . . 72 . . . . 27 64 . . . . Level 3 . | . . . . . . . . . . . . . . Level 4 . | . . . . . . . . . . . . . . Level 5 . | . . . . . . . . . . . . . . High Security . | . . . . . . . . . . . . . . Max Security . | . . . . . . . . . . . . . . Squads Dispatched 18 | . 1 . 5 . . . 1 . 1 9 . 1 . Investigation 3 | . . . 1 . . . . . . 2 . . . Extermination 1 | . . . . . . . . . . 1 . . . Reinforcement 11 | . 1 . 4 . . . 1 . 1 3 . 1 . Assault . | . . . . . . . . . . . . . . Garrison 3 | . . . . . . . . . . 3 . . . Intercept . | . . . . . . . . . . . . . . Searches Triggered . | . . . . . . . . . . . . . . Construction Impeded . | . . . . . . . . . . . . . . Haulers Reinforced . | . . . . . . . . . . . . . . Active Scanning Responses . | . . . . . . . . . . . . . . Cargo Convoy Interrupts . | . . . . . . . . . . . . . . Stealth | -11 -10 -10 -9 -9 -9 -8 -8 -8 -8 -7 -7 -7 -7 --------- Run | Yrd Mat Min Mat Min Exi Min Mat Gar Mat Fac Gar Fac Gar Distress Signals 9 | . . . 3 . . . 2 . 2 2 . . . Communications Jammed . | . . . . . . . . . . . . . . Distress Signals . | . . . . . . . . . . . . . . Times Spotted 197 | . 10 4 44 4 . 4 39 19 21 25 7 5 15 Peak Tracking Total 9 | . 5 3 9 3 . 3 6 6 5 4 5 3 4 Tactical Retreats 18 | . . . 5 . . 1 1 1 5 4 . . 1 Traps | -11 -10 -10 -9 -9 -9 -8 -8 -8 -8 -7 -7 -7 -7 ------- Run | Yrd Mat Min Mat Min Exi Min Mat Gar Mat Fac Gar Fac Gar Traps Triggered 8 | . . . . . . . 3 3 . . 2 . . Indirectly . | . . . . . . . . . . . . . . Trap Hack Attempts . | . . . . . . . . . . . . . . Triggered . | . . . . . . . . . . . . . . Disarmed . | . . . . . . . . . . . . . . Reprogrammed . | . . . . . . . . . . . . . . Reused . | . . . . . . . . . . . . . . Traps Extracted . | . . . . . . . . . . . . . . Installed . | . . . . . . . . . . . . . . Triggered . | . . . . . . . . . . . . . . Most Traps Carried 3 | . . . . . . . . . . . 3 3 3 Machines | -11 -10 -10 -9 -9 -9 -8 -8 -8 -8 -7 -7 -7 -7 ---------- Run | Yrd Mat Min Mat Min Exi Min Mat Gar Mat Fac Gar Fac Gar Machines Disabled 6 | . . . 1 1 . . 1 1 1 1 . . . Max in Single Turn 1 | . . . 1 1 . . 1 1 . 1 . . . Garrison Relay 1 | . . . . . . . . 1 . . . . . Machines Repaired . | . . . . . . . . . . . . . . Machines Dismantled . | . . . . . . . . . . . . . . Machines Sabotaged . | . . . . . . . . . . . . . . Overloaded Fab Kills . | . . . . . . . . . . . . . . Hacking | -11 -10 -10 -9 -9 -9 -8 -8 -8 -8 -7 -7 -7 -7 --------- Run | Yrd Mat Min Mat Min Exi Min Mat Gar Mat Fac Gar Fac Gar Machines Accessed 25 | . 2 . 5 . 1 . 8 1 1 6 . 1 . Terminals 18 | . 2 . 5 . . . 6 1 1 3 . . . Fabricators . | . . . . . . . . . . . . . . Repair Stations 1 | . . . . . . . . . . 1 . . . Recycling Units 1 | . . . . . . . . . . 1 . . . Scanalyzers 1 | . . . . . . . 1 . . . . . . Garrison Access 3 | . . . . . . . 1 . . 1 . 1 . Total Hacks 58 | . 4 . 12 . 1 . 22 1 2 15 . 1 . Successful 28 | . 4 . 5 . 1 . 11 1 1 4 . 1 . Failed 30 | . . . 7 . . . 11 . 1 11 . . . Catastrophic 5 | . . . 1 . . . 3 . . 1 . . . Database Lockouts . | . . . . . . . . . . . . . . Manual 36 | . 4 . 11 . 1 . 15 . 2 3 . . . Terminals 39 | . 4 . 12 . . . 15 1 2 5 . . . Fabricators . | . . . . . . . . . . . . . . Repair Stations 5 | . . . . . . . . . . 5 . . . Recycling Units 3 | . . . . . . . . . . 3 . . . Scanalyzers 6 | . . . . . . . 6 . . . . . . Garrison Access 4 | . . . . . . . 1 . . 2 . 1 . Terminal Hacks 9 | . 3 . 2 . 1 . 1 1 . 1 . . . Robot Analysis 1 | . . . . . . . . . . 1 . . . Open Door 1 | . . . . . . . . 1 . . . . . Branch Access Points 2 | . 1 . 1 . . . . . . . . . . Terminal Index 2 | . . . 1 . . . 1 . . . . . . Garrison Index 1 | . 1 . . . . . . . . . . . . Hauler Manifests 1 | . 1 . . . . . . . . . . . . Derelict Proto ID Bank 1 | . . . . . 1 . . . . . . . . Fabricator Hacks . | . . . . . . . . . . . . . . Repair Station Hacks 1 | . . . . . . . . . . 1 . . . Scan Component 1 | . . . . . . . . . . 1 . . . Recycling Unit Hacks . | . . . . . . . . . . . . . . Scanalyzer 5 | . . . . . . . 5 . . . . . . Insert Component 2 | . . . . . . . 2 . . . . . . Analyze 3 | . . . . . . . 3 . . . . . . Garrison Access Hacks 4 | . . . . . . . 1 . . 2 . 1 . Unlock Access 3 | . . . . . . . 1 . . 1 . 1 . Coupler Status 1 | . . . . . . . . . . 1 . . . Unauthorized Hacks 9 | . 1 . 3 . . . 4 . 1 . . . . Terminals 9 | . 1 . 3 . . . 4 . 1 . . . . Assimilate 1 | . . . . . . . 1 . . . . . . Botnet 8 | . 1 . 3 . . . 3 . 1 . . . . Fabricators . | . . . . . . . . . . . . . . Repair Stations . | . . . . . . . . . . . . . . Recycling Units . | . . . . . . . . . . . . . . Scanalyzers . | . . . . . . . . . . . . . . Garrison Access . | . . . . . . . . . . . . . . Data Cores Recovered 1 | . . . 1 . . . . . . . . . . Used . | . . . . . . . . . . . . . . Hacking Detections 17 | . 2 . 4 . . . 4 . 1 6 . . . Full Trace Events 4 | . . . 1 . . . 1 . . 2 . . . Feedback Events 1 | . . . . . . . 1 . . . . . . Hackware Fried 1 | . . . . . . . 1 . . . . . . Feedback Blocked . | . . . . . . . . . . . . . . Robot Schematics Acquired . | . . . . . . . . . . . . . . Robots Built . | . . . . . . . . . . . . . . Authchips . | . . . . . . . . . . . . . . Time . | . . . . . . . . . . . . . . Total Robot Build Rating . | . . . . . . . . . . . . . . Part Schematics Acquired 2 | . . . . . . . 2 . . . . . . Parts Built . | . . . . . . . . . . . . . . Authchips . | . . . . . . . . . . . . . . Time . | . . . . . . . . . . . . . . Total Part Build Rating . | . . . . . . . . . . . . . . Parts Repaired . | . . . . . . . . . . . . . . Time . | . . . . . . . . . . . . . . Parts Recycled . | . . . . . . . . . . . . . . Recycled Matter . | . . . . . . . . . . . . . . Retrieved Matter . | . . . . . . . . . . . . . . Retrieved Components . | . . . . . . . . . . . . . . Parts Scanalyzed 2 | . . . . . . . 2 . . . . . . Part Schematics Acquired 2 | . . . . . . . 2 . . . . . . Parts Damaged 1 | . . . . . . . 1 . . . . . . Bothacking | -11 -10 -10 -9 -9 -9 -8 -8 -8 -8 -7 -7 -7 -7 ------------ Run | Yrd Mat Min Mat Min Exi Min Mat Gar Mat Fac Gar Fac Gar Used RIF Installer 2 | . . . . . . . . 1 . . . . 1 Patrol Navigation 1 | . . . . . . . . . . . . . 1 Robots Hacked 7 | . . . . . . . . 4 1 2 . . . Non-combat . | . . . . . . . . . . . . . . Combat 7 | . . . . . . . . 4 1 2 . . . Robot Hacks Applied 8 | . . . . . . . . 5 1 2 . . . parse_system 1 | . . . . . . . . 1 . . . . . scatter_targeting 1 | . . . . . . . . . . 1 . . . reboot_system 1 | . . . . . . . . . . 1 . . . go_dormant 1 | . . . . . . . . . 1 . . . . overwrite_iff 2 | . . . . . . . . 2 . . . . . formatsys_high 2 | . . . . . . . . 2 . . . . . Relay Couplers Released 5 | . . . . . . . . 5 . . . . . Machine Destruction 5 | . . . . . . . . 5 . . . . . Attached 3 | . . . . . . . . 2 1 . . . . Fabnet Peak Effective % . | . . . . . . . . . . . . . . Robots Rewired . | . . . . . . . . . . . . . . Allies Hacked . | . . . . . . . . . . . . . . Hacks Repelled . | . . . . . . . . . . . . . . Allies | -11 -10 -10 -9 -9 -9 -8 -8 -8 -8 -7 -7 -7 -7 -------- Run | Yrd Mat Min Mat Min Exi Min Mat Gar Mat Fac Gar Fac Gar Total Allies 8 | . . 2 . . . . . 6 . . . . . Largest Group 3 | . . 2 1 . . . . 3 3 . . . . Highest-Rated Group 71 | . . 41 31 . . . . 71 68 . . . . Highest-Rated Ally 31 | . . 31 31 . . . . 31 28 . . . . Total Orders . | . . . . . . . . . . . . . . Ally Attacks 62 | . . 3 14 . . . . 23 22 . . . . Total Damage 943 | . . 65 128 . . . . 342 408 . . . . Kills 13 | . . . 3 . . . . 5 5 . . . . Allies Corrupted . | . . . . . . . . . . . . . . Allies Melted . | . . . . . . . . . . . . . . Intel | -11 -10 -10 -9 -9 -9 -8 -8 -8 -8 -7 -7 -7 -7 ------- Run | Yrd Mat Min Mat Min Exi Min Mat Gar Mat Fac Gar Fac Gar Robot Analysis Total 1 | . . . . . . . . . . 1 . . . Derelict Logs Recovered 2 | . . 1 . 1 . . . . . . . . . Drone Launches . | . . . . . . . . . . . . . . Drone Recoveries . | . . . . . . . . . . . . . . Exploration | -11 -10 -10 -9 -9 -9 -8 -8 -8 -8 -7 -7 -7 -7 ------------- Run | Yrd Mat Min Mat Min Exi Min Mat Gar Mat Fac Gar Fac Gar Turns Passed 7504 | 69 362 243 1209 545 278 543 1478 549 526 1034 283 109 276 Spaces Moved 4445 | 44 166 140 652 404 213 310 855 357 358 556 183 83 124 Core 17 | 14 . . 1 . . . . . . . . . 2 Treads 457 | 28 166 140 123 . . . . . . . . . . Legs 3837 | 2 . . 528 404 213 310 855 357 358 556 128 4 122 Wheels 134 | . . . . . . . . . . . 55 79 . Hover . | . . . . . . . . . . . . . . Flight . | . . . . . . . . . . . . . . Fastest Speed 50 | 50 160 160 120 130 130 130 130 130 116 116 125 115 123 Average Speed 133 | 123 160 160 144 130 130 132 133 130 116 121 128 124 151 Slowest Speed 700 | 160 160 160 400 130 130 200 200 130 130 127 200 130 700 Overloaded Moves . | . . . . . . . . . . . . . . Propulsion Burnouts . | . . . . . . . . . . . . . . Robots Hopped . | . . . . . . . . . . . . . . Cave-ins Triggered 1 | . . . . . . . . . . 1 . . . Exploration Rate (%) 41 | 5 35 41 64 93 60 61 66 36 37 18 37 2 21 Regions Visited 13 Branch Regions 4 Pre-discovered Areas . | . . . . . . . . . . . . . . Known Exits Taken 9 | . 1 . 1 1 1 1 1 . 1 1 . 1 . Unknown Exits Taken 2 | 1 . 1 . . . . . . . . . . . Scrap Searched 3 | . . . . 2 . 1 . . . . . . . Spaces Dug 14 | . . . . . . . . . . 10 . . 4 Terrain Destroyed 37 | . . . 23 . . . . . . 10 . . 4 Melee 14 | . . . . . . . . . . 10 . . 4 Projectile . | . . . . . . . . . . . . . . AOE 23 | . . . 23 . . . . . . . . . . Terrain Rammed . | . . . . . . . . . . . . . . Walls Destroyed . | . . . . . . . . . . . . . . Machines Disabled . | . . . . . . . . . . . . . . Actions | -11 -10 -10 -9 -9 -9 -8 -8 -8 -8 -7 -7 -7 -7 --------- Run | Yrd Mat Min Mat Min Exi Min Mat Gar Mat Fac Gar Fac Gar Total 5573 | 58 219 153 807 411 214 426 1056 426 444 865 224 88 182 Wait 524 | . 11 . 18 . . 100 76 26 39 219 21 . 14 Move 4435 | 43 165 139 651 403 212 309 855 356 357 556 182 83 124 Hop . | . . . . . . . . . . . . . . Pick Up 86 | 9 7 2 20 . 1 2 13 4 5 14 3 1 5 Fast Attach 23 | 2 4 1 5 . . 2 8 1 . . . . . Attach 53 | 3 2 . 10 . . . 9 1 5 12 2 3 6 Detach 7 | . . . 2 . . . . . 2 2 . . 1 Swap 24 | . 2 2 5 . . 1 5 7 2 . . . . Drop 61 | 1 6 5 18 . 1 4 11 4 5 3 2 . 1 Fire 182 | . 22 4 69 6 . 8 66 6 . . . . 1 Melee 158 | . . . 4 . . . 11 15 29 59 9 1 30 Ram . | . . . . . . . . . . . . . . Kick 9 | . . . 5 2 . . 2 . . . . . . Crush . | . . . . . . . . . . . . . . Escape Stasis 11 | . . . . . . . . 6 . . 5 . . Rewire . | . . . . . . . . . . . . . . Trap . | . . . . . . . . . . . . . . Miscellaneous . | . . . . . . . . . . . . . . Route ------- -11/Scrapyard -10/Materials -10/Mines -9/Materials (discovered 5 exits: *Mat x3 / *Min x2) -9/Mines (discovered 3 exits: *Mat x2 / *Exi) -9/Exiles -8/Mines -8/Materials (discovered 2 exits: *Fac / Gar) -8/Garrison -8/Materials -7/Factory (discovered 2 exits: Sto / Gar) -7/Garrison (discovered 2 exits: *Fac x2) -7/Factory (discovered 2 exits: [*Low] / Gar) -7/Garrison History --------- Turn | Location | Event 16 | -11/Scrapyard | Discovered new exit (range 15) 70 | -11/Scrapyard | Entered Materials 152 | -10/Materials | Identified exit to Mines 309 | -10/Materials | Build established: Mutant 432 | -10/Materials | Entered Mines 487 | -10/Mines | Joined a pair of Derelicts in attacking an 0b10 outpost 496 | -10/Mines | Learned Materials emergency access door positions 659 | -10/Mines | Discovered new exit (range 11) 675 | -10/Mines | Entered Materials 675 | -9/Materials | Accompanied by 1 ally 675 | -9/Materials | Evolved 2 slots: Utility x2 680 | -9/Materials | Led the pair of lost Derelicts to an unsafe place 785 | -9/Materials | Discovered new exit (range 14) 1005 | -9/Materials | Build established: Scavenger-Mutant 1144 | -9/Materials | Discovered new exit (range 9) 1161 | -9/Materials | Identified exit to Materials 1406 | -9/Materials | Identified exit to Mines 1423 | -9/Materials | Discovered exit to Materials (range 8) 1526 | -9/Materials | Core integrity fell below 50% 1884 | -9/Materials | Entered Mines 1911 | -9/Mines | Received a Rocket Launcher from a helpful Derelict 1969 | -9/Mines | Discovered exit to Materials (range 7) 2134 | -9/Mines | Build established: Mutant 2272 | -9/Mines | Discovered exit to Materials (range 5) 2424 | -9/Mines | Deemed a non-threat by the Exiles lab entrance 2424 | -9/Mines | Discovered new exit (range 5) 2428 | -9/Mines | Identified exit to Exiles 2429 | -9/Mines | Entered Exiles 2462 | -9/Exiles | Met 8R-AWN 2485 | -9/Exiles | Met EX-HEX 2524 | -9/Exiles | Met EX-BIN 2540 | -9/Exiles | Aligned with FarCom system 2541 | -9/Exiles | Given EX-Vault access code 2572 | -9/Exiles | Opened EX-Vault 2581 | -9/Exiles | Found Longsword +1 2610 | -9/Exiles | Warned to stay clear of 0b10 Research branches 2627 | -9/Exiles | Exiles lab attacked by MAIN.C 2691 | -9/Exiles | Discovered new exit (range 14) 2705 | -9/Exiles | Identified exit to Mines 2707 | -9/Exiles | Left Exiles lab with Longsword +1 2707 | -9/Exiles | Entered Mines 3238 | -8/Mines | Discovered exit to Materials (range 10) 3250 | -8/Mines | Build established: Scavenger-Mutant 3250 | -8/Mines | Entered Materials 3250 | -8/Materials | Evolved 2 slots: Propulsion x1, Utility x1 4118 | -8/Materials | Build established: Mutant 4278 | -8/Materials | Hacking Suite fried by hacking feedback 4718 | -8/Materials | Discovered new exit (range 14) 4728 | -8/Materials | Identified exit to Garrison 4728 | -8/Materials | Entered Garrison 4804 | -8/Garrison | Triggered checkpoint 4968 | -8/Garrison | Installed Relay Interface Framework 5001 | -8/Garrison | Garrison Relay disabled 5022 | -8/Garrison | Triggered checkpoint 5097 | -8/Garrison | Assembled breached garrison interior 5184 | -8/Garrison | Rescued a captive Derelict 5185 | -8/Garrison | Rescued a captive Derelict 5230 | -8/Garrison | Discovered new exit (range 8) 5262 | -8/Garrison | Identified exit to Materials 5277 | -8/Garrison | Entered Materials 5277 | -8/Materials | Accompanied by 3 allies 5366 | -8/Materials | Lost 3 allies 5785 | -8/Materials | Discovered new exit (range 15) 5801 | -8/Materials | Identified exit to Factory 5803 | -8/Materials | Entered Factory 5803 | -7/Factory | Evolved 2 slots: Propulsion x1, Utility x1 5804 | -7/Factory | Identified exit to Storage 6382 | -7/Factory | Garrison activated, responded to threat 6782 | -7/Factory | Crushed by falling debris 6837 | -7/Factory | Identified exit to Garrison 6837 | -7/Factory | Entered Garrison 6935 | -7/Garrison | Triggered checkpoint 6935 | -7/Garrison | Triggered checkpoint 7022 | -7/Garrison | Discovered new exit (range 8) 7103 | -7/Garrison | Triggered checkpoint 7103 | -7/Garrison | Discovered new exit (range 5) 7119 | -7/Garrison | Identified exit to Factory 7120 | -7/Garrison | Entered Factory 7177 | -7/Factory | Discovered new exit (range 14) 7229 | -7/Factory | Identified exit to Garrison 7229 | -7/Factory | Entered Garrison 7319 | -7/Garrison | Expanded RIF knowledge: Patrol Navigation 7369 | -7/Garrison | Triggered checkpoint 7434 | -7/Garrison | Lost 3 parts (1p2n) 7435 | -7/Garrison | Core integrity fell below 50% 7503 | -7/Garrison | Core integrity fell below 20% 7505 | -7/Garrison | Self-destructed Last Messages --------------- G-47 Trooper destroyed. Acquired Carbon-fiber Leg. Acquired Aluminum Leg. Garrison Door activated. S-27 Virus destroyed. Titanium Leg destroyed. Acquired 27 matter. Destroyed VTOL Module. S-27 Virus destroyed. Acquired VTOL Module. Aluminum Leg destroyed. S-27 Virus destroyed. Acquired 13 matter. S-27 Virus destroyed. Carbon-fiber Leg destroyed. Imp. Deuterium Engine destroyed. System corrupted: Heat flow error (+141). S-27 Virus destroyed. VTOL Module destroyed. Imp. Melee Analysis Suite destroyed. Map ----- +----------------------------------------------------+ | ?????????????????????????????????????????????????? | | ?????????????????????????????????????????????????? | | ?????????????????????????????????????????????????? | | ?????????????????????????????????????????????????? | | ?????????????????????????????????????????????????? | | ?????????????????????????????????????????????????? | | ?????????????????????????????????????????????????? | | ?????????????????????????????????????????????????? | | ?????????????????????????????????????????????????? | | ??????????????????????# ????????????????????????? | | ??????????????????????# ????????????????????????? | | ??????????????????????# ????????????????????????? | | ??????????????????????# ????????????????????????? | | ??????????????????Y???# ????????????????????????? | | ?????????????? ##"?""## #???????????????????????? | | ????????????? ? #??????????????????????? | | ?????????????? ? ??????????????????????? | | ??????????????? ?? ??????????????????????? | | ???????????? ???# ?# #??????????????????????? | | ???????????? ## ## ###????????????????????? | | ???????????" #????????????????????? | | ???????????" #????????????????????? | | ???????????" " #????????????????????? | | ???????????" "%" #????????????????????? | | ????????????????# " ##s*!###????????????????????? | | ???????????# ^## ##s=@###########????????????? | | ???????????# =[%* % #????????????? | | ???????????# s**%[[=%=[ #??????####?## | | ???????????# =######## #??????#""###" | | ???????????## ## ###+##??????# ##?????#" """ | | ????????????????# ???#%????????# ##?????#" | | ????????????????###????#?????????# # #????# | | ?????????????????????????????????# ######## | | ?????????????????????????????????# " !|[+ "# | | ?????????????????????????????????# #####%#" !"# | | ?????????????????????????????????# #???#=*# "# | | ?????????????????????????????????# #???#=## %["# | | ?????????????????????????????????# #???# ## """"# | | ???????????????????????????####### #???# ######## | | ?????????????????????????# #???# #??????? | | ???????????????????????????####### ############?? | | ?????????????????????????????????# #?? | | ?????????????????????????????????# #?? | | ?????????????????????????????????########### #?? | | ???????????????????????????????????????????# #?? | | ???????????????????????????????????????????#####?? | | ?????????????????????????????????????????????????? | | ?????????????????????????????????????????????????? | | ?????????????????????????????????????????????????? | | ?????????????????????????????????????????????????? | +----------------------------------------------------+ Best States ------------- Heat Dissipation 53 Energy Generation 16 Energy Capacity 290 Matter Stores 300 Matter Capacity 300 Sight Range 16 Terrain Scan Density 10 Armor Coverage 450 Core Shielding 20 Propulsion Shielding 66 Weapon Shielding 66 Evasion (%) 55 Targeting Accuracy 10 Melee Accuracy 6 Recoil Reduction 2 Offensive Hacking 10 Relay Coupler Types 2 Relay Coupler Value 30 Item Schematics ----------------- Titanium Leg | -8/Materials | Scanalyzed Rocket Launcher | -8/Materials | Scanalyzed Robot Schematics ------------------ None Fabricated ------------ Nothing Alien Tech Used ----------------- None Achievements -------------- Assimilation Complete Factory Defaults Challenges ------------ None Game ------ Seed DisposableLightningRefractor Manual? 0 Play Time 01:08:19 Cumulative 30.0 hours Start 2024.05.25 @ 20:42:33 End 2024.05.27 @ 23:50:50 Sessions 1 Manual Loads 0 Difficulty Rogue Special Mode None Game No. 43 Rogue 43 Adventurer 0 Explorer 0 Win Type - Total 1 Types 1/0/0/0/0/0/0/0/0 Lore% 23 Gallery% 33 Achievement% 29 Wizard Run 0 Options --------- Layout 1 ASCII 0 Keyboard 0 Movement Mouse Keybinds 0 Fullscreen 2 Font 24/Smallcaps Map View 50x35 Zoom Use 0% Tactical HUD 0 Map Filters NONE Filters NONE Steam 1 RUN: 77f99df2-a891-458c-9536-df47fa02b3ff